bitfinex/quotes_ETHUSD_20250724
["timestamp","ask_amount","ask_price","bid_price","bid_amount"]
[1753351392715,0.002,3641.7,3641.6,8.9342958]
[1753351393474,0.002,3641.7,3641.6,4.4156]
[1753351393679,0.4614,3641.7,3641.6,7.02404569]
[1753351397937,0.002,3641.7,3641.6,7.02404569]
[1753351398425,0.002,3641.7,3641.6,7.16164569]
[1753351399027,0.002,3641.7,3641.6,7.62664968]
[1753351399218,0.002,3641.7,3641.6,9.52447096]
[1753351400000,1e-08,3641.7,3641.6,12.52447096]
[1753351400196,1e-08,3641.7,3641.6,13.31997096]
[1753351400797,1e-08,3641.7,3641.6,13.06447096]
[1753351401611,1e-08,3641.7,3641.6,13.06347096]
[1753351401813,1e-08,3641.7,3641.6,8.16564968]
[1753351403837,1e-08,3641.7,3641.6,3.88864968]
[1753351404043,1e-08,3641.7,3641.6,8.16564968]
[1753351406146,1e-08,3641.7,3641.6,7.37014968]
[1753351408816,1e-08,3641.7,3641.6,3.09314968]
[1753351409021,1e-08,3641.7,3641.6,7.37014968]
[1753351409342,1e-08,3641.7,3641.6,16.99471185]
[1753351409643,1e-08,3641.7,3641.6,20.25021185]
[1753351414120,1e-08,3641.8,3641.7,5.74597028]
[1753351414430,1e-08,3642.0,3641.9,6.55721948]
[1753351414635,1e-08,3642.0,3641.9,12.38348162]
[1753351414844,1e-08,3642.0,3641.9,12.77658162]
[1753351415033,0.002,3642.5,3642.4,3.51524256]
[1753351415233,0.002,3642.5,3642.4,18.60997688]
[1753351415433,0.002,3642.5,3642.4,18.74757688]
[1753351415757,0.002,3642.5,3642.4,19.75920473]
[1753351416060,1e-08,3642.5,3642.4,19.75920473]
[1753351416355,1e-08,3642.5,3642.4,20.01470473]
[1753351418447,0.18582216,3643.9,3642.4,20.01470473]
[1753351418448,0.04,3643.9,3643.8,2.74438772]
[1753351418771,0.04,3643.9,3643.8,7.04683159]
[1753351418973,0.04,3643.9,3643.8,7.01938772]
[1753351420373,0.5062,3643.9,3643.8,7.01938772]
[1753351420583,0.5062,3643.9,3643.8,4.275]
[1753351420736,0.8302,3643.8,3643.4,2.74462967]
[1753351420931,0.8302,3643.8,3643.0,0.8257]
[1753351420932,0.4662,3643.7,3643.5,4.275]
[1753351421178,0.5062,3643.9,3643.7,2.74440756]
[1753351421341,0.04,3643.9,3643.8,4.275]
[1753351421542,0.04,3643.9,3643.1,2.74487322]
[1753351421543,0.4662,3643.8,3643.3,2.74469591]
[1753351421779,1e-08,3643.9,3643.8,5.74438772]
[1753351422074,1e-08,3643.9,3643.8,10.01938772]
[1753351422789,1e-08,3643.9,3643.8,11.05092435]
[1753351422939,1e-08,3643.9,3643.8,11.30642435]
[1753351423996,1e-08,3643.9,3643.8,11.05092435]
[1753351424305,1e-08,3643.9,3643.8,12.60118649]
[1753351426324,1e-08,3643.9,3643.8,11.77348649]
[1753351426466,1e-08,3643.9,3643.8,7.50048649]
[1753351426672,1e-08,3643.9,3643.8,11.77348649]
[1753351426873,0.46620001,3643.9,3643.8,5.95022435]
[1753351427066,0.46620001,3643.9,3643.8,2.95022435]
[1753351427288,0.04,3644.9,3644.8,2.74363476]
[1753351427468,0.04,3644.9,3644.8,4.273]
[1753351427780,0.5062,3644.9,3644.8,7.04863476]
[1753351428494,0.04,3644.9,3644.8,7.18543476]
[1753351428698,0.04,3644.9,3644.8,9.21332294]
[1753351428913,0.04,3644.9,3644.8,17.03205726]
[1753351430006,1e-08,3644.9,3644.8,20.28755726]
[1753351430371,1e-08,3644.9,3644.8,20.83755726]
[1753351430728,0.04,3645.9,3645.8,2.74288222]
[1753351430875,0.04,3645.9,3645.8,7.04688222]
[1753351431218,0.04,3645.9,3645.8,7.18368222]
[1753351431801,0.04,3645.9,3645.8,11.47828403]
[1753351432290,0.04,3645.9,3645.8,11.34148403]
[1753351432492,0.78940943,3646.7,3646.6,2.74228048]
[1753351432690,0.00560943,3646.7,3646.6,2.74228048]
[1753351433027,0.47180943,3646.7,3646.4,4.303]
[1753351433315,0.47180943,3646.7,3646.4,7.24732804]
[1753351433515,0.4662,3646.7,3646.4,7.24732804]
[1753351433716,0.4662,3646.7,3646.4,4.50495478]
[1753351433919,0.4662,3646.6,3646.5,2.74235568]
[1753351434075,0.4662,3646.6,3646.4,7.24736225]
[1753351434277,0.4662,3646.5,3646.4,7.24738567]
[1753351434477,0.4662,3646.5,3646.4,2.94538567]
[1753351434721,1.2441,3646.5,3646.4,0.20295478]
[1753351434900,1.2441,3646.5,3646.0,2.74268437]
[1753351435070,1.2441,3646.5,3646.4,2.74243089]
[1753351435276,1e-08,3646.9,3646.8,2.74213008]
[1753351435277,1.24410001,3646.9,3646.8,2.74213008]
[1753351436313,1e-08,3646.9,3646.8,2.74213008]
[1753351436605,0.46620001,3646.9,3646.8,2.74213008]
[1753351439809,1e-08,3646.9,3646.8,2.74213008]
[1753351440617,1e-08,3646.9,3646.4,0.20244125]
[1753351440618,0.46620001,3646.9,3646.7,4.296]
[1753351440819,1e-08,3646.9,3646.8,2.74213008]
[1753351441020,0.00678385,3647.6,3646.8,1.2115213]
[1753351441324,0.8035,3647.9,3647.5,2.74158952]
[1753351442118,0.4662,3647.8,3647.0,5.74193135]
[1753351442322,0.4662,3647.8,3647.5,2.87833882]
[1753351442496,0.8035,3647.9,3647.8,2.74137836]
[1753351442690,0.04,3647.9,3647.8,2.74137836]
[1753351442889,0.04,3647.9,3647.8,0.1368]
[1753351443093,0.5062,3647.9,3647.6,0.1368]
[1753351443597,0.4662,3647.8,3646.8,0.7545]
[1753351443797,0.8133,3647.7,3647.5,2.74155906]
[1753351443989,0.8133,3647.7,3647.6,2.74152867]
[1753351444188,0.04,3647.9,3647.6,0.1368]
[1753351444421,0.7579,3647.8,3647.5,2.74153936]
[1753351444720,0.04,3647.9,3647.8,2.74137836]
[1753351444890,0.04,3647.9,3647.8,2.87817836]
[1753351445695,0.04,3647.9,3647.6,2.74146466]
[1753351445696,0.5062,3647.9,3647.6,2.7414826]
[1753351445891,0.5062,3647.9,3646.7,0.2555]
[1753351445892,0.4662,3647.8,3647.2,2.74182776]
[1753351446114,0.4662,3647.8,3646.9,2.74201024]
[1753351446115,2.90585477,3647.7,3646.9,2.74201024]
[1753351446313,2.74167317,3647.5,3647.1,0.1368]
[1753351446630,0.38374896,3648.8,3647.0,0.0679]
[1753351446819,0.38374896,3648.8,3646.4,0.20244125]
[1753351446820,6.38189276,3653.0,3652.1,0.0379]
[1753351447002,11.78195586,3655.8,3653.2,1.651]
[1753351447212,1.39272265,3656.5,3655.4,7.81873432]
[1753351447213,6.34323204,3656.5,3655.4,7.81873432]
[1753351447409,5.29385539,3656.5,3656.3,2.73500533]
[1753351447730,0.5087,3657.9,3656.4,0.57572956]
[1753351447731,0.4687,3657.4,3656.4,0.57572956]
[1753351447930,0.04,3657.9,3656.5,8.698099]
[1753351448135,0.0392,3656.9,3656.6,7.81873432]
[1753351448336,7.81873432,3660.1,3654.8,3.28292638]
[1753351448337,11.6641226,3659.3,3656.7,0.57507585]
[1753351448634,5.01916047,3659.2,3656.8,0.5884663]
[1753351448794,0.5028614,3659.1,3658.7,11.72844755]
[1753351449036,0.49559621,3659.1,3658.8,0.40439355]
[1753351449236,4.984,3659.0,3658.7,11.72844755]
[1753351449439,0.04,3659.9,3658.7,11.72844755]
[1753351449440,0.04,3659.9,3658.7,11.34783267]
[1753351449749,0.04,3659.9,3658.8,7.55613556]
[1753351450305,0.37923427,3660.6,3658.8,7.55613556]
[1753351450451,0.03414834,3660.5,3660.4,3.28911654]
[1753351450646,0.03414834,3660.5,3659.7,4.69873791]
[1753351450647,2.73238974,3659.8,3659.7,3.26743791]
[1753351450970,2.73238974,3659.8,3658.8,7.55613556]
[1753351450971,2.73306184,3658.9,3658.8,7.7612742]
[1753351451130,2.73306184,3658.9,3658.8,7.55613556]
[1753351451131,5.786,3658.9,3658.8,7.55613556]
[1753351451336,47.56918394,3658.9,3658.8,7.55613556]
[1753351451550,47.56918394,3658.9,3657.1,0.04]
[1753351451551,3.0,3658.8,3657.1,0.04]
[1753351451732,0.03416514,3658.7,3657.1,0.04]
[1753351451966,3.0,3658.5,3657.1,0.04]
[1753351452269,0.03416794,3658.4,3657.1,0.04]
[1753351452566,3.0,3658.2,3658.1,2.33503454]
[1753351452734,5.69433227,3657.2,3657.1,0.04]
[1753351452938,5.69433227,3657.2,3656.6,7.49426242]
[1753351452939,5.73470615,3656.7,3656.6,7.49426242]
[1753351453140,20.23470615,3656.7,3656.6,6.66096242]
[1753351453334,26.06270615,3656.7,3656.6,5.78966242]
[1753351453667,20.33618684,3656.7,3655.1,0.04]
[1753351453886,3.0,3655.2,3655.1,0.04]
[1753351454140,4.83340184,3655.2,3655.1,0.04]
[1753351454289,3.36072447,3655.2,3655.1,0.04]
[1753351454445,5.823,3655.2,3655.1,0.04]
[1753351454752,6.0501221,3657.2,3655.3,2.73575356]
[1753351454942,5.832,3657.2,3656.7,1.86169438]
[1753351455140,5.832,3657.2,3656.9,1.39642527]
[1753351455351,6.577,3657.5,3656.8,1.86169438]
[1753351455576,7.69717679,3658.5,3657.4,2.73414603]
[1753351455895,6.617,3658.9,3657.6,0.69706926]
[1753351456042,0.04,3657.9,3657.7,3.44441115]
[1753351456375,0.04,3657.9,3657.8,0.4408]
[1753351456747,0.04,3657.9,3657.8,0.5776]
[1753351457050,0.04,3657.9,3657.8,0.1368]
[1753351457585,0.04,3657.9,3657.2,9.53606926]
[1753351457764,0.04404062,3657.9,3657.8,2.87068375]
[1753351458143,0.04404062,3657.9,3657.2,3.53664762]
[1753351458374,0.04404062,3657.9,3657.8,2.87068375]
[1753351458760,0.04,3657.9,3657.8,2.87068375]
[1753351458959,0.04404062,3657.9,3657.8,2.87068375]
[1753351459186,0.04404062,3657.9,3657.8,0.1368]
[1753351459386,0.04404062,3657.9,3657.6,2.73403008]
[1753351459590,0.04404062,3657.9,3657.5,2.73403773]
[1753351459794,0.18084062,3657.9,3657.6,2.73398436]
[1753351460002,0.18084062,3657.9,3657.4,0.1368]
[1753351460148,0.18084062,3657.9,3657.5,3.17490799]
[1753351460350,0.18084062,3657.9,3657.2,3.0]
[1753351460351,0.04404062,3657.9,3657.8,2.73388375]
[1753351460661,0.04404062,3657.9,3657.8,2.87068375]
[1753351461046,0.04404062,3657.9,3657.4,5.851]
[1753351461245,0.04404062,3657.9,3657.4,5.9878]
[1753351461447,0.04404062,3657.9,3657.8,2.73388375]
[1753351461646,0.04404062,3657.9,3657.4,0.5776]
[1753351461869,0.04404062,3657.9,3657.2,0.92979229]
[1753351462068,0.1368,3657.7,3657.6,1.39468843]
[1753351462279,0.1368,3657.8,3657.7,2.73395294]
[1753351462485,0.04,3657.9,3657.7,4.12666533]
[1753351462793,0.04,3657.9,3657.8,1.39271239]
[1753351463163,0.04,3657.9,3657.8,4.12659614]
[1753351463347,0.04,3657.9,3657.8,1.39271239]
[1753351463746,0.4808,3657.9,3657.8,1.39271239]
[1753351463945,0.4808,3657.9,3656.8,2.32276369]
[1753351463946,5.73403324,3657.6,3657.5,1.39271239]
[1753351464261,2.73440704,3657.1,3657.0,1.86169438]
[1753351464585,5.73455659,3656.9,3656.8,1.86169438]
[1753351464747,5.87135659,3656.9,3656.3,2.32276369]
[1753351464947,0.0561,3657.8,3656.4,2.32276369]
[1753351465169,3.0,3657.5,3657.2,1.85927333]
[1753351465398,0.1368,3657.3,3657.2,1.85927333]
[1753351465604,0.1368,3657.3,3656.2,3.38775201]
[1753351465605,0.0561,3657.8,3657.0,1.85927333]
[1753351465765,0.0561,3657.8,3657.1,1.85927333]
[1753351465946,0.0561,3657.8,3657.0,1.85927333]
[1753351466150,14.5561,3657.8,3657.1,4.593614]
[1753351466403,14.5561,3657.8,3656.4,2.73487664]
[1753351466404,14.5561,3657.8,3657.2,1.85927333]
[1753351466545,0.03417448,3657.7,3657.2,0.93090259]
[1753351466749,0.03417448,3657.7,3656.5,1.85927333]
[1753351466750,2.73412195,3657.5,3657.3,0.93090259]
[1753351466967,2.73412195,3657.5,3657.4,0.93090259]
[1753351467248,14.5,3657.5,3656.7,1.85927333]
[1753351467462,14.5,3657.5,3657.4,0.93184077]
[1753351467689,14.5,3657.5,3656.4,2.73491157]
[1753351468285,14.5,3657.5,3656.5,2.73484723]
[1753351468493,2.73425699,3657.4,3656.3,5.831]
[1753351468776,2.73427266,3657.3,3655.9,2.73524076]
[1753351468954,0.00304057,3657.2,3656.2,2.73506804]
[1753351469182,0.00304057,3657.2,3656.6,2.73473781]
[1753351469352,0.00304057,3657.2,3656.7,2.73470157]
[1753351469572,0.00304057,3657.2,3656.8,2.73457497]
[1753351469775,0.00304057,3657.2,3656.5,2.73479515]
[1753351469976,0.00304057,3657.2,3656.4,5.817]
[1753351470453,0.00304057,3657.2,3656.7,2.7346825]
[1753351470851,0.00304057,3657.2,3656.7,0.4408]
[1753351471051,0.00304057,3657.2,3656.3,2.73494245]
[1753351471363,0.03721972,3657.2,3655.3,0.4408]
[1753351471569,2.73440704,3657.1,3655.8,2.73533004]
[1753351471775,2.73440704,3657.1,3655.5,8.54959709]
[1753351471776,2.73448601,3657.0,3655.7,2.735431]
[1753351472089,0.03418008,3657.1,3655.6,5.815]
[1753351472090,2.73477146,3656.7,3655.6,2.73547509]
[1753351472288,2.73456416,3656.9,3655.7,2.73544303]
[1753351472289,2.73465337,3656.8,3655.7,2.73544303]
[1753351472587,5.81667237,3656.9,3655.3,6.2548]
[1753351472752,14.5,3657.1,3656.0,2.73522301]
[1753351472953,0.00267237,3656.8,3655.8,0.4408]
[1753351473154,0.00267237,3656.8,3656.2,2.73500643]
[1753351473556,0.00267237,3656.8,3656.1,2.73513827]
[1753351473997,0.00267237,3656.8,3655.8,0.4408]
[1753351474190,0.00267237,3656.8,3656.2,2.7350777]
[1753351474496,0.00267237,3656.8,3656.2,2.73508013]
[1753351474696,0.00267237,3656.8,3656.1,5.813]
[1753351474882,2.73403646,3657.6,3656.6,2.73475503]
[1753351475199,14.5,3657.5,3656.6,2.73475503]
[1753351475695,0.00267237,3657.4,3656.3,0.5776]
[1753351475894,0.1368,3656.9,3656.8,2.73463137]
[1753351476194,0.1368,3656.9,3656.8,3.17543137]
[1753351476605,0.14084062,3656.9,3656.8,0.4408]
[1753351476815,0.14084062,3656.9,3656.4,2.73493053]
[1753351476961,0.14084062,3656.9,3656.6,2.73470977]
[1753351477157,0.00404062,3656.9,3656.8,2.73463137]
[1753351477468,0.00404062,3656.9,3656.3,2.73498886]
[1753351477668,0.1368,3656.8,3656.4,2.73492049]
[1753351477855,0.1368,3656.5,3656.3,2.73497693]
[1753351478059,0.1368,3656.5,3656.4,2.73493053]
[1753351478299,0.00404062,3656.7,3656.3,0.1368]
[1753351478483,0.00404062,3656.7,3656.2,2.51270729]
[1753351478681,0.00404062,3656.7,3656.3,0.4388]
[1753351478869,0.00404062,3656.7,3656.6,2.73478094]
[1753351479075,0.25928648,3656.7,3656.4,0.4388]
[1753351479276,0.25524586,3656.6,3656.5,2.7348556]
[1753351479682,0.25524586,3656.6,3656.2,0.1368]
[1753351479888,0.39204586,3656.5,3656.3,5.801]
[1753351480074,0.25524586,3656.4,3656.3,4.55555702]
[1753351480271,0.00404062,3656.7,3656.4,2.73486719]
[1753351480482,0.00404062,3656.7,3656.6,2.73478094]
[1753351480684,0.25526074,3657.8,3656.5,0.4388]
[1753351480884,0.042,3657.9,3657.1,2.73440618]
[1753351481110,0.042,3657.9,3657.5,2.73405263]
[1753351481282,0.042,3657.9,3657.4,5.819]
[1753351481607,0.25532797,3657.8,3657.5,2.73406093]
[1753351481808,0.25532797,3657.7,3657.6,2.73403324]
[1753351482013,0.25532797,3657.7,3657.6,3.17283324]
[1753351482306,0.25532797,3657.7,3657.0,0.4388]
[1753351482472,0.25532797,3657.6,3657.1,5.816]
[1753351482672,0.042,3657.9,3657.3,2.73425751]
[1753351482673,0.25532797,3657.5,3657.3,2.73425751]
[1753351482897,0.25532797,3657.4,3657.3,2.73425751]
[1753351483223,0.25532797,3657.4,3657.3,8.56025751]
[1753351483711,0.25532797,3657.4,3657.3,8.67069247]
[1753351484312,0.25532797,3657.4,3657.3,8.99905751]
[1753351484676,0.25532797,3657.4,3657.3,0.4388]
[1753351484876,0.25532797,3657.4,3657.3,5.822]
[1753351485482,0.25532797,3657.4,3657.3,6.2608]
[1753351485870,0.25532797,3657.4,3657.3,8.99505751]
[1753351486073,0.25532797,3657.4,3657.3,8.6393276]
[1753351486805,0.25532797,3657.4,3657.3,6.2498]
[1753351487103,0.25532797,3657.4,3657.3,8.98405751]
[1753351488482,0.25532797,3657.4,3657.3,11.98405751]
[1753351488719,0.25532797,3657.4,3657.3,8.98805751]
[1753351489005,0.25936859,3657.4,3657.3,8.98805751]
[1753351490172,0.25936859,3657.4,3657.3,11.97805751]
[1753351490377,0.25936859,3657.4,3657.3,12.66485751]
[1753351490619,0.25936859,3657.4,3657.3,6.85985751]
[1753351490910,0.25936859,3657.4,3657.3,26.50634151]
[1753351491281,0.042,3657.9,3657.3,1.8082]
[1753351491478,0.042,3657.9,3657.8,2.87068375]
[1753351491701,0.042,3657.9,3657.8,8.69868375]
[1753351492207,0.042,3657.9,3657.8,9.13748375]
[1753351492410,0.042,3657.9,3657.8,6.4036]
[1753351492597,0.042,3657.9,3657.3,1.2326]
[1753351492917,0.042,3657.9,3657.4,0.1368]
[1753351493086,0.042,3657.9,3655.8,0.001]
[1753351493087,2.73427567,3657.3,3657.2,5.827]
[1753351493289,0.255,3657.3,3656.9,5.829]
[1753351493622,0.1368,3657.1,3656.9,5.829]
[1753351493792,0.00404062,3657.3,3657.0,0.4388]
[1753351494110,0.1788,3657.9,3657.1,0.4388]
[1753351494286,0.042,3657.9,3657.2,0.1368]
[1753351494488,0.00404062,3657.8,3657.6,0.1368]
[1753351494694,0.00404062,3657.8,3657.7,5.831]
[1753351494876,0.25941287,3657.8,3657.7,5.83]
[1753351495510,0.25941287,3657.8,3657.7,6.2688]
[1753351495690,0.00404062,3657.8,3657.7,6.2688]
[1753351496091,0.00404062,3657.8,3657.7,0.4388]
[1753351496537,0.00404062,3657.8,3657.7,6.2548]
[1753351496692,2.73252679,3659.7,3657.7,7.0845]
[1753351496889,0.51172995,3662.8,3659.8,2.73238974]
[1753351497132,2.53640442,3662.7,3660.0,3.0]
[1753351497430,6.05530343,3661.9,3660.3,2.40040605]
[1753351497613,6.05530343,3661.9,3660.0,3.0]
[1753351497614,0.255,3661.9,3660.0,3.0]
[1753351497827,6.11613621,3661.8,3660.1,0.4388]
[1753351497987,0.03413714,3661.7,3660.1,3.4388]
[1753351498326,0.03413714,3661.7,3660.1,0.4388]
[1753351498529,6.101,3661.7,3660.1,0.4388]
[1753351498713,6.098,3661.6,3660.1,0.4388]
[1753351499090,6.567,3662.1,3660.3,3.0]
[1753351499294,6.567,3662.1,3661.5,2.73111377]
[1753351499625,6.567,3662.1,3661.6,2.73102556]
[1753351499828,6.567,3662.1,3661.0,2.73149412]
[1753351500024,6.567,3662.1,3660.9,0.4388]
[1753351500025,0.03413435,3662.0,3660.9,0.4388]
[1753351500228,2.76501397,3661.9,3660.3,2.7320165]
[1753351500431,0.255,3661.8,3660.1,0.04]
[1753351500730,0.25963714,3661.7,3660.1,0.04]
[1753351500931,2.99066204,3661.7,3660.5,2.73184122]
[1753351501137,2.99066204,3661.7,3660.1,0.04]
[1753351501138,0.255,3661.6,3660.4,2.73192787]
[1753351501333,0.00222235,3661.6,3660.7,2.73171602]
[1753351501506,0.00222235,3661.6,3660.1,0.4788]
[1753351501707,0.00222235,3661.6,3661.3,2.73120051]
[1753351502031,0.00222235,3661.6,3661.5,2.73112112]
[1753351502446,0.00222235,3661.6,3661.5,3.16992112]
[1753351503000,0.00222235,3661.6,3660.4,3.0]
[1753351503200,0.00222235,3661.6,3660.3,3.4388]
[1753351503406,0.00222235,3661.6,3660.3,0.4388]
[1753351504114,0.00222235,3661.6,3661.5,2.73112112]
[1753351504317,0.00222235,3661.6,3660.5,2.73186723]
[1753351504318,0.00222235,3661.6,3660.3,3.4388]
[1753351504610,0.00222235,3661.6,3660.5,3.0]
[1753351504811,0.00222235,3661.6,3660.5,2.73186723]
[1753351505012,0.00222235,3661.6,3660.9,2.7315226]
[1753351505205,0.00222235,3661.6,3660.4,0.4388]
[1753351505406,0.00222235,3661.6,3660.5,2.73186723]
[1753351505947,0.00222235,3661.6,3660.4,0.4388]
[1753351506146,0.00222235,3661.6,3661.3,2.73119764]
[1753351506345,0.00222235,3661.6,3660.5,5.73186723]
[1753351506512,0.00222235,3661.6,3660.8,2.73163732]
[1753351506882,0.1368,3661.1,3660.9,2.73156206]
[1753351507320,0.00122229,3661.2,3661.1,2.73141951]
[1753351507644,0.00122229,3661.2,3659.5,2.73255271]
[1753351507848,0.00122229,3661.2,3660.7,2.73166433]
[1753351507849,0.1368,3660.9,3660.7,2.73166433]
[1753351508026,0.1368,3660.9,3660.4,0.1368]
[1753351508027,0.1368,3660.9,3660.8,2.73164335]
[1753351508227,0.1368,3660.9,3660.4,0.1368]
[1753351508228,0.1368,3660.9,3660.7,2.73170168]
[1753351508524,0.1368,3660.9,3660.5,2.73182483]
[1753351508525,0.1368,3660.9,3660.5,3.0]
[1753351508849,0.1368,3660.9,3660.7,2.73166053]
[1753351509009,0.1368,3660.9,3660.8,2.73164335]
[1753351509205,0.1368,3660.9,3660.5,0.4662]
[1753351509410,0.2255,3661.1,3660.1,0.04]
[1753351509625,0.1368,3660.6,3660.5,2.73186723]
[1753351510222,0.3623,3661.1,3660.5,0.603]
[1753351510425,0.3623,3661.1,3660.5,3.33484255]
[1753351510625,0.2255,3661.1,3660.1,0.04]
[1753351510833,0.1368,3660.8,3660.6,2.73173007]
[1753351511032,0.1368,3660.8,3660.7,2.73171797]
[1753351511361,0.1368,3660.8,3660.3,0.1368]
[1753351511362,0.2255,3661.1,3660.3,2.73195229]
[1753351511516,0.2255,3661.1,3660.6,2.73177842]
[1753351511716,0.1368,3660.6,3660.5,2.73186723]
[1753351512360,0.1368,3660.6,3660.1,0.1768]
[1753351512361,0.1368,3660.6,3660.1,0.04]
[1753351512523,0.2255,3661.1,3660.1,0.04]
[1753351512852,0.1368,3660.6,3660.4,2.73189137]
[1753351513226,0.00167232,3660.5,3660.4,2.73189137]
[1753351515364,0.00167232,3660.5,3660.1,0.1768]
[1753351515652,0.1368,3660.3,3660.1,0.04]
[1753351516014,0.13847232,3660.3,3660.1,0.04]
[1753351516221,0.2381,3660.2,3660.1,0.04]
[1753351516556,6.58255456,3660.2,3659.1,0.04]
[1753351516770,2.73258733,3659.6,3659.1,0.04]
[1753351516957,2.73283777,3659.2,3659.1,0.04]
[1753351517118,2.97093777,3659.2,3659.1,0.04]
[1753351517322,9.33693777,3659.2,3659.1,0.04]
[1753351517533,0.4931,3659.2,3659.1,0.04]
[1753351517823,6.3415698,3659.2,3659.1,0.04]
[1753351518059,9.07440757,3659.2,3659.1,0.04]
[1753351518556,0.2395698,3659.2,3659.1,0.04]
[1753351518744,9.06240757,3659.2,3659.1,0.04]
[1753351519345,2.73358482,3658.2,3658.1,0.04]
[1753351519547,0.03416887,3658.3,3658.1,0.04]
[1753351519748,6.077,3658.5,3658.3,0.001]
[1753351519960,2.73343538,3658.4,3658.3,0.001]
[1753351520375,3.02260332,3658.4,3658.3,0.001]
[1753351520568,3.26070332,3658.4,3658.3,0.001]
[1753351521249,0.2381,3658.4,3658.3,0.001]
[1753351521447,2.97153538,3658.4,3658.3,0.001]
[1753351521856,9.02653538,3658.4,3658.3,0.001]
[1753351522696,9.28153538,3658.4,3658.3,0.001]
[1753351523851,3.22653538,3658.4,3658.3,0.001]
[1753351524072,9.29370332,3658.4,3658.3,0.001]
[1753351524246,9.24953538,3658.4,3658.3,0.001]
[1753351524673,2.73358482,3658.2,3658.1,0.04]
[1753351525064,2.98858482,3658.2,3658.1,0.04]
[1753351525553,3.02275463,3658.2,3658.1,0.04]
[1753351525876,2.98858482,3658.2,3658.1,0.04]
[1753351526457,3.12538482,3658.2,3658.1,0.04]
[1753351527081,2.87038482,3658.2,3658.1,0.04]
[1753351527267,2.87038482,3658.2,3657.3,0.001]
[1753351527268,2.73418275,3657.4,3657.3,0.001]
[1753351527590,9.12526003,3657.4,3657.3,0.001]
[1753351527787,9.34608275,3657.4,3657.3,0.001]
[1753351528376,9.09108275,3657.4,3657.3,0.001]
[1753351528884,9.34608275,3657.4,3657.3,0.001]
[1753351529874,2.73433227,3657.2,3657.1,0.04]
[1753351530096,2.90531142,3657.2,3657.1,0.04]
[1753351530391,3.16031142,3657.2,3657.1,0.04]
[1753351530604,3.16031142,3657.2,3657.1,1e-08]
[1753351531205,2.73470615,3656.7,3656.6,1e-08]
[1753351531412,14.9992934,3656.7,3656.6,1e-08]
[1753351531610,15.90690958,3656.7,3656.6,1e-08]
[1753351531780,2.73530457,3655.9,3655.8,0.001]
[1753351531982,8.66230457,3655.9,3655.8,0.001]
[1753351532188,8.79910457,3655.9,3655.8,0.001]
[1753351532383,9.05410457,3655.9,3655.8,0.001]
[1753351532608,2.7358284,3655.2,3655.1,0.04]
[1753351532808,8.82482625,3655.2,3655.1,0.04]
[1753351533106,8.7906284,3655.2,3655.1,0.04]
[1753351533318,2.8726284,3655.2,3655.1,0.04]
[1753351533608,8.7796284,3655.2,3655.1,0.04]
[1753351534778,9.0346284,3655.2,3655.1,0.04]
[1753351536911,9.0346284,3655.2,3655.1,1e-08]
[1753351537209,9.00081769,3655.2,3655.1,1e-08]
[1753351537576,2.73605296,3654.9,3654.8,1e-08]
[1753351537787,14.82435705,3654.9,3654.8,1e-08]
[1753351537979,14.79015639,3654.9,3654.8,1e-08]
[1753351538334,14.7983481,3654.9,3654.8,1e-08]
[1753351538974,2.88104467,3654.9,3654.8,1e-08]
[1753351539173,8.73604467,3654.9,3654.8,1e-08]
[1753351539919,2.88104467,3654.9,3654.8,1e-08]
[1753351540121,8.72304467,3654.9,3654.8,1e-08]
[1753351542607,8.97804467,3654.9,3654.8,1e-08]
[1753351542818,8.93304467,3654.9,3654.8,1e-08]
[1753351544022,8.93304467,3654.9,3652.1,1.3622]
[1753351544023,2.73732617,3653.2,3652.1,1.3622]
[1753351544358,2.77154274,3653.2,3653.1,1e-08]
[1753351544506,8.56961631,3653.2,3653.1,1e-08]
[1753351544709,8.53232617,3653.2,3653.1,1e-08]
[1753351544910,8.53239974,3653.2,3653.1,1e-08]
[1753351545600,6.54539974,3653.2,3653.1,1e-08]
[1753351545936,12.33739974,3653.2,3653.1,1e-08]
[1753351546137,12.33432617,3653.2,3653.1,1e-08]
[1753351546431,12.33432617,3653.2,3652.1,0.0779]
[1753351546432,2.73807568,3652.2,3652.1,1e-08]
[1753351546585,8.52207568,3652.2,3652.1,1e-08]
[1753351547204,2.73807568,3652.2,3652.1,1e-08]
[1753351547435,8.50807568,3652.2,3652.1,1e-08]
[1753351548624,9.07987568,3652.2,3652.1,1e-08]
[1753351549142,9.33487568,3652.2,3652.1,1e-08]
[1753351550543,9.88487568,3652.2,3652.1,1e-08]
[1753351550925,12.88487568,3652.2,3652.1,1e-08]
[1753351552523,2.73882559,3651.2,3651.1,1e-08]
[1753351552952,8.4840609,3651.2,3651.1,1e-08]
[1753351553153,8.44982559,3651.2,3651.1,1e-08]
[1753351553565,2.73882559,3651.2,3651.1,1e-08]
[1753351553762,8.45082559,3651.2,3651.1,1e-08]
[1753351553940,8.58762559,3651.2,3651.1,1e-08]
[1753351555867,8.58762559,3651.2,3650.7,0.459]
[1753351555868,2.73912567,3650.8,3650.7,0.40900001]
[1753351556035,2.73912567,3650.8,3650.6,0.001]
[1753351556036,2.7392007,3650.7,3650.6,0.001]
[1753351557878,2.7392007,3650.7,3650.6,0.46]
[1753351558042,0.1368,3650.8,3650.6,0.46]
[1753351558237,0.1368,3651.0,3650.6,0.46]
[1753351558443,0.1368,3651.0,3650.6,3.1992152]
[1753351558669,0.1368,3651.0,3650.7,0.459]
[1753351559065,0.03423063,3651.7,3650.8,1.2962]
[1753351559343,5.654,3651.8,3650.8,1.2962]
[1753351559344,0.1368,3651.3,3650.9,0.459]
[1753351560293,2.73836409,3651.9,3651.2,2.73878853]
[1753351560450,0.1368,3651.5,3651.3,0.459]
[1753351560852,2.87541806,3651.5,3651.3,0.459]
[1753351561097,2.73897562,3651.0,3650.9,0.459]
[1753351561401,0.1368,3651.0,3650.9,0.459]
[1753351561759,3.0,3652.5,3650.9,0.459]
[1753351561760,0.1368,3651.8,3651.1,1.273]